Cogmind - Beta 16 @@@ ROGUE MODE // 2025.11.13 @ 17:23:59 Player: AlcoholicAardvark Result: Destroyed by G-34 Mercenary with Small Laser Performance ------------- Evolutions (0) 0 Regions Visited (3) 600 Robots Destroyed (17) 85 Value Destroyed (455) 455 Prototype IDs (2) 40 Alien Tech Used (0) 0 Bonus (0) 0 TOTAL SCORE: 1180 Bonus ------- None Cogmind --------- Core Integrity 0/250 Matter 297/300 Energy 100/100 System Corruption 0% Temperature Cool (6) Movement Core (50) Location -10/Subcaves Parts ------- > --- POWER (1) -------- (None) > --- PROPULSION (2) --- (None) > --- UTILITY (2) ------ Targeting Computer Hacking Suite > --- WEAPON (2) ------- Battle Rifle > --- INVENTORY (5) ---- Light Treads Light Treads Scrap Shield Light Assault Rifle Peak State ------------ > --- POWER ------------ Ion Engine > --- PROPULSION ------- Flight Unit Flight Unit > --- UTILITY ---------- Targeting Computer Hacking Suite > --- WEAPON ----------- Particle Gun Battle Rifle > --- INVENTORY -------- Light Treads Light Treads Scrap Shield Light Assault Rifle [Rating: 11] Favorites ----------- Power Ion Engine Engine Ion Engine Propulsion Light Treads Treads Light Treads Flight Unit Flight Unit Utility Targeting Computer Storage Small Storage Unit Processor Targeting Computer Hackware Hacking Suite Weapon Particle Gun Energy Gun Particle Gun Ballistic Gun Assault Rifle Build | -11 -10 -10 -10 ------- Run | Yrd Mat Min Sub Slots Evolved . | . . . . Power . | . . . . Propulsion . | . . . . Utility . | . . . . Weapon . | . . . . Parts Attached 16 | 6 9 . 1 Power 4 | 1 3 . . Engine 4 | 1 3 . . Core . | . . . . Reactor . | . . . . Propulsion 4 | 2 2 . . Treads 2 | 2 . . . Leg . | . . . . Wheel . | . . . . Hover . | . . . . Flight 2 | . 2 . . Utility 3 | 1 2 . . Device . | . . . . Storage 1 | 1 . . . Processor 1 | . 1 . . Hackware 1 | . 1 . . Protection . | . . . . Artifact . | . . . . Weapon 5 | 2 2 . 1 Energy Gun 1 | . 1 . . Energy Cannon . | . . . . Ballistic Gun 4 | 2 1 . 1 Ballistic Cannon . | . . . . Launcher . | . . . . Special Weapon . | . . . . Impact Weapon . | . . . . Slashing Weapon . | . . . . Piercing Weapon . | . . . . Special Melee Weapon . | . . . . Unidentified Prototypes . | . . . . Parts Lost 4 | . 1 . 3 Power 2 | . 1 . 1 Propulsion 2 | . . . 2 Utility . | . . . . Weapon . | . . . . Highest Loss Streak 3 | . 1 . 3 To Critical Strikes . | . . . . Average Backups 2 | . 2 4 4 Power . | . . 1 . Propulsion . | . . 2 2 Utility . | . . . . Weapon 1 | . 1 1 1 Tool/Special . | . . . . Unused Backups 2 | . 1 . 1 Power . | . . . . Propulsion . | . . . . Utility 1 | . . . 1 Weapon 1 | . 1 . . Tool/Special . | . . . . Average Slot Usage (%) 86 | . 92 85 62 Engine 12 | . 13 14 7 Treads 13 | . 18 . . Flight 12 | . 9 28 13 Storage 6 | . 9 . . Processor 13 | . 13 14 14 Hackware 5 | . 1 14 14 Energy Gun 9 | . 10 14 4 Ballistic Gun 12 | . 15 . 9 Peak Build Rating 11 | 6 9 9 11 Average Rating 7 | 4 7 9 7 On Entrance 6 | . 6 9 9 Avg Prop Armor Cover (%) . | . . . . Naked Turns . | . . . . Heaviest Build 15 | 12 15 8 8 Greatest Support 40 | 40 40 8 8 Greatest Overweight (x) 1 | . 1 . 1 Average Overweight (x) . | . . . . Largest Inventory Capacity 8 | 8 8 5 5 Average Capacity 6 | 6 6 5 5 Most Carried 5 | . 5 4 5 Average Carried 2 | . 2 4 4 Final Capacity 8 | 8 5 5 5 Final Carried 5 | . 4 4 5 Class Distribution -------------------- 63% | Mutant 36% | Scavenger-Mutant Dominant Class ---------------- Mutant | -10/Materials Scavenger-Mutant | -10/Mines Mutant | -10/Subcaves Resources | -11 -10 -10 -10 ----------- Run | Yrd Mat Min Sub Matter Collected 484 | 208 269 . 7 Remotely . | . . . . Salvage Created 526 | . 495 . 31 Parts 36 | . 34 . 2 Haulers Intercepted . | . . . . Recyclers Shooed . | . . . . Parts Field Recycled . | . . . . Retrieved Matter . | . . . . Parts Self-Destructed 10 | . . . 10 Prevented . | . . . . Parts Restored . | . . . . Kills | -11 -10 -10 -10 ------- Run | Yrd Mat Min Sub Combat Hostiles Destroyed 13 | . 12 . 1 Guns 13 | . 12 . 1 Classes Destroyed 6 | . 5 . 1 Builder 1 | . 1 . . Operator 1 | . 1 . . Watcher 2 | . 2 . . Swarmer 3 | . 3 . . Grunt 9 | . 9 . . Subdweller 1 | . . . 1 Best Kill Streak 4 | . 4 . 1 Combat Bots Only 4 | . 4 . 1 Max Kills in Single Turn 2 | . 2 . 1 Gunslinging 1 | . 1 . . Exploded . | . . . . Melee . | . . . . Uniques/NPCs Destroyed . | . . . . Combat | -11 -10 -10 -10 -------- Run | Yrd Mat Min Sub Hostile Shots Fired 101 | . 86 . 15 Missed 34 | . 30 . 4 Hits 67 | . 56 . 11 Projectile 67 | . 56 . 11 Damage Taken 867 | . 628 29 210 Core 253 | . 140 29 84 Absorbed by Shields . | . . . . Core Remaining (%) 100 | 100 . . . Volleys Fired 52 | . 47 . 5 Largest 2 | . 2 . 1 Hottest 85 | . 85 . 25 Shots Fired 86 | . 81 . 5 Gun 86 | . 81 . 5 Cannon . | . . . . Launcher . | . . . . Special . | . . . . Kinetic 60 | . 55 . 5 Thermal 26 | . 26 . . Explosive . | . . . . Electromagnetic . | . . . . Robot Hit Streak 7 | . 7 . 7 Robot Miss Streak 7 | . 7 . . Penetration Max . | . . . . Secondary Targets 2 | . 2 . . Max Gunslinging Chain 1 | . 1 . . Shots Hit Robots 53 | . 48 . 5 Core Hits 28 | . 27 . 1 Critical Kills . | . . . . Critical Parts Destroyed . | . . . . Critical Strikes . | . . . . Melee Attacks . | . . . . Impact . | . . . . Slashing . | . . . . Piercing . | . . . . Sneak Attacks . | . . . . Combat Hostiles . | . . . . Follow-up Attacks . | . . . . Damage Inflicted 717 | . 646 . 71 Guns 714 | . 643 . 71 Cannons . | . . . . Explosions . | . . . . Melee . | . . . . Ramming 3 | . 3 . . Kinetic 487 | . 416 . 71 Thermal 227 | . 227 . . Explosive . | . . . . Electromagnetic . | . . . . Impact . | . . . . Slashing . | . . . . Piercing . | . . . . Highest Corruption . | . . . . Average Corruption . | . . . . Corruption Purged . | . . . . Corruption Blocked . | . . . . Overload Shots . | . . . . Overflow Damage . | . . . . Projectiles . | . . . . Explosions . | . . . . Melee . | . . . . Knockbacks . | . . . . Impact . | . . . . Kinetic . | . . . . Secondary . | . . . . Self-Inflicted Damage . | . . . . Shots . | . . . . Rammed 2 | . 2 . . Targets Rammed 2 | . 2 . . Kicked . | . . . . Crushed . | . . . . Highest Temperature 210 | . 210 . . Average Temperature 75 | . 75 . . Received Heat Transfer 396 | . 312 . 84 Siege Activations . | . . . . Martial Activations . | . . . . Shielding Activations . | . . . . Robots Disrupted . | . . . . Combat Hostiles . | . . . . Robots Corrupted . | . . . . Combat Hostiles . | . . . . Parts Fried . | . . . . Impact Corruptions . | . . . . Robots Melted . | . . . . Combat Hostiles . | . . . . Parts Melted . | . . . . Heat Transferred 555 | . 555 . . Parts Sabotaged . | . . . . Parts Stolen . | . . . . Parts Stripped . | . . . . Power Chain Reactions . | . . . . Alert | -11 -10 -10 -10 ------- Run | Yrd Mat Min Sub Maximum Alert Level . | . . . . Low Security (%) 100 | 100 100 100 . Level 1 . | . . . . Level 2 . | . . . . Level 3 . | . . . . Level 4 . | . . . . Level 5 . | . . . . High Security . | . . . . Max Security . | . . . . Peak Influence 135 | . 135 29 . Initial 29 | . . 29 . Average 42 | . 55 9 . Influence Increases 332 | . 332 . . Destroy 0b10 Robot/C 240 | . 240 . . Destroy 0b10 Robot/NC 20 | . 20 . . Destroy Leader 54 | . 54 . . Successful Hack 2 | . 2 . . Destroy Structure 1 | . 1 . . Lose Combat Pursuer 15 | . 15 . . Influence Decreases 332 | . 256 76 . Entered New Map 47 | . . 47 . Time Decay 275 | . 246 29 . Lost Part 10 | . 10 . . Squads Dispatched 4 | . 4 . . Investigation 2 | . 2 . . Extermination . | . . . . Reinforcement 2 | . 2 . . Assault . | . . . . Garrison . | . . . . Intercept . | . . . . Searches Triggered . | . . . . Construction Impeded . | . . . . Haulers Reinforced . | . . . . Active Scanning Responses . | . . . . Cargo Convoy Interrupts . | . . . . Stealth | -11 -10 -10 -10 --------- Run | Yrd Mat Min Sub Distress Signals 1 | . 1 . . Communications Jammed . | . . . . Distress Signals . | . . . . Times Spotted 26 | . 21 . 5 Peak Tracking Total 7 | . 7 . 3 Tactical Retreats 2 | . 1 . 1 Traps | -11 -10 -10 -10 ------- Run | Yrd Mat Min Sub Traps Triggered . | . . . . Indirectly . | . . . . Trap Hack Attempts . | . . . . Triggered . | . . . . Disarmed . | . . . . Reprogrammed . | . . . . Reused . | . . . . Traps Extracted . | . . . . Installed . | . . . . Triggered . | . . . . Machines | -11 -10 -10 -10 ---------- Run | Yrd Mat Min Sub Machines Disabled . | . . . . Max in Single Turn . | . . . . Machines Repaired . | . . . . Machines Dismantled . | . . . . Machines Sabotaged . | . . . . Overloaded Fab Kills . | . . . . Hacking | -11 -10 -10 -10 --------- Run | Yrd Mat Min Sub Machines Accessed 7 | . 6 1 . Terminals 5 | . 5 . . Fabricators . | . . . . Repair Stations . | . . . . Recycling Units 1 | . 1 . . Scanalyzers . | . . . . Garrison Access . | . . . . Total Hacks 17 | . 16 1 . Successful 7 | . 6 1 . Failed 10 | . 10 . . Catastrophic 4 | . 4 . . Database Lockouts . | . . . . Manual 4 | . 4 . . Terminals 12 | . 12 . . Fabricators . | . . . . Repair Stations . | . . . . Recycling Units 4 | . 4 . . Scanalyzers . | . . . . Garrison Access . | . . . . Terminal Hacks 6 | . 5 1 . Record 2 | . 2 . . Prototype ID Bank 1 | . 1 . . Open Door 1 | . . 1 . Alert Level 1 | . 1 . . Locate Traps 1 | . 1 . . Fabricator Hacks . | . . . . Repair Station Hacks . | . . . . Recycling Unit Hacks 1 | . 1 . . Process 1 | . 1 . . Scanalyzer . | . . . . Garrison Access Hacks . | . . . . Unauthorized Hacks . | . . . . Terminals . | . . . . Fabricators . | . . . . Repair Stations . | . . . . Recycling Units . | . . . . Scanalyzers . | . . . . Garrison Access . | . . . . Data Cores Recovered . | . . . . Used . | . . . . Hacking Detections 5 | . 5 . . Full Trace Events 5 | . 5 . . Feedback Events . | . . . . Feedback Blocked . | . . . . Robot Schematics Acquired . | . . . . Robots Built . | . . . . Authchips . | . . . . Time . | . . . . Total Robot Build Rating . | . . . . Part Schematics Acquired . | . . . . Parts Built . | . . . . Authchips . | . . . . Time . | . . . . Total Part Build Rating . | . . . . Part Studies Acquired . | . . . . Parts Repaired . | . . . . Time . | . . . . Parts Recycled . | . . . . Recycled Matter 215 | . 215 . . Retrieved Matter . | . . . . Retrieved Components . | . . . . Parts Scanalyzed . | . . . . Part Schematics Acquired . | . . . . Parts Damaged . | . . . . Bothacking | -11 -10 -10 -10 ------------ Run | Yrd Mat Min Sub Used RIF Installer . | . . . . Robots Hacked . | . . . . Non-combat . | . . . . Combat . | . . . . Robot Hacks Applied . | . . . . Relay Couplers Released . | . . . . Fabnet Peak Effective % . | . . . . Robots Rewired . | . . . . Allies Hacked . | . . . . Hacks Repelled . | . . . . Allies | -11 -10 -10 -10 -------- Run | Yrd Mat Min Sub Total Allies . | . . . . Largest Group . | . . . . Highest-Rated Group . | . . . . Highest-Rated Ally . | . . . . Total Orders . | . . . . Ally Attacks . | . . . . Total Damage . | . . . . Kills . | . . . . Allies Corrupted . | . . . . Allies Melted . | . . . . Intel | -11 -10 -10 -10 ------- Run | Yrd Mat Min Sub Active Infowar (turns) . | . . . . Robot Analysis Total . | . . . . Derelict Logs Recovered 1 | . . 1 . Drone Launches . | . . . . Drone Recoveries . | . . . . Exploration | -11 -10 -10 -10 ------------- Run | Yrd Mat Min Sub Turns Passed 1053 | 117 670 117 149 Spaces Moved 1128 | 67 549 315 197 Core 124 | 2 . . 122 Treads 285 | 65 220 . . Legs . | . . . . Wheels . | . . . . Hover . | . . . . Flight 719 | . 329 315 75 Fastest Speed 37 | 50 37 37 37 Average Speed 73 | 156 94 37 46 Slowest Speed 160 | 160 160 37 120 Overloaded Moves . | . . . . Propulsion Burnouts . | . . . . Robots Hopped 2 | . 1 1 . Potential Cave-ins . | . . . . Cave-ins Triggered . | . . . . Exploration Rate (%) 37 | 4 68 61 17 Regions Visited 3 Branch Regions 2 Pre-discovered Areas . | . . . . Known Exits Taken . | . . . . Unknown Exits Taken 3 | 1 1 1 . Scrap Searched . | . . . . Spaces Dug . | . . . . Terrain Destroyed . | . . . . Melee . | . . . . Projectile . | . . . . AOE . | . . . . Terrain Rammed . | . . . . Walls Destroyed . | . . . . Machines Disabled . | . . . . Actions | -11 -10 -10 -10 --------- Run | Yrd Mat Min Sub Total 1257 | 76 618 313 250 Wait 51 | 4 3 . 44 Move 1121 | 66 546 312 197 Hop 2 | . 1 1 . Pick Up 5 | . 4 . 1 Fast Attach 10 | 6 3 . 1 Attach . | . . . . Detach 1 | . 1 . . Swap 6 | . 6 . . Drop 7 | . 5 . 2 Fire 52 | . 47 . 5 Melee . | . . . . Ram . | . . . . Kick . | . . . . Crush 2 | . 2 . . Escape Stasis . | . . . . Rewire . | . . . . Trap . | . . . . Miscellaneous . | . . . . Route ------- -11/Scrapyard -10/Materials (discovered 4 exits: [*Mat x3] / *Min) -10/Mines (discovered 2 exits: [*Mat] / [*Sub]) -10/Subcaves History --------- Turn | Location | Event 14 | -11/Scrapyard | Discovered new exit (range 15) 118 | -11/Scrapyard | Entered Materials 309 | -10/Materials | Build established: Mutant 362 | -10/Materials | Discovered new exit (range 15) 510 | -10/Materials | Discovered new exit (range 16) 611 | -10/Materials | Core integrity fell below 50% 629 | -10/Materials | Discovered new exit (range 13) 782 | -10/Materials | Discovered new exit (range 15) 788 | -10/Materials | Entered Mines 793 | -10/Mines | Found a hidden stash of uninstalled traps 801 | -10/Mines | Discovered new exit (range 15) 814 | -10/Mines | Met a Derelict who couldn't figure out how to use a Trap Extractor 845 | -10/Mines | Build established: Scavenger-Mutant 895 | -10/Mines | Discovered new exit (range 12) 905 | -10/Mines | Entered Subcaves 906 | -10/Subcaves | Approached by a straggling Scientist 941 | -10/Subcaves | Shifting Twisted Machinery released Battle Rifle 953 | -10/Subcaves | Ambushed by swarm of Subdwellers 967 | -10/Subcaves | Core integrity fell below 20% 1000 | -10/Subcaves | Lost 3 allies 1001 | -10/Subcaves | Lost 3 parts (1p2n) 1054 | -10/Subcaves | Destroyed by G-34 Mercenary with Small Laser Last Messages --------------- from was talking about a shortcut back to the UFD." Dropped Ion Engine. Acquired Scrap Shield. Battle Rifle falls loose from the Twisted Machinery. Acquired Battle Rifle. Dropped Particle Gun. A mess of Twisted Machinery falls from the cavern ceiling. CK-JOC(R) comes tumbling into view. NB-1M6(c): "I think it's somewhere southeast of here" GP-LD7(R) emerges from the Twisted Machinery. Flight Unit destroyed. 08-XGV(u) builds Twisted Machinery. Flight Unit destroyed. Ion Engine destroyed. Acquired 7 matter. CW-AI1(R) destroyed. Map ----- +----------------------------------------------------+ | ?????????????????????? % ## ! #??????? | | ????????????????????????????#" ## ##??????? | | ????????????????????????????### #? #??????? | | ??????????????????????????????## ##? #??????? | | ???????????????????????????????## #??? #??????? | | ????????????????????????????????## ##?? ##??????? | | ????????????????????????????????## #??"#???????? | | ????????????????????????????????# #???????????? | | ????????????????????????????###?## ##??? #?????? | | ????????????????????????????#" ##%"""#?? #?????? | | ????????????????????????????#" ## ""#?? #??????? | | ????????????????????????????#" """#? ##?????? | | ????????????????????????????#" ""## ##????? | | ????????????????????????????#### """ #????? | | ???????????????????????????????## """ #????? | | ????????????????????????????????# " #?????? | | ????????????????????????????????## "" #?????? | | ?????????????????????????????????# ## "" #????? | | ??###???????????????????????????## #?# " #????? | | ??# #????????????????????????# ##??# #????? | | ? ??????????????????????# ##????# ????? | | ? ###################### #??????? #???? | | ?? # # ## # # #????????#????? | | ??????# g [%& ##?????????????? | | ??????# g ! #??????????????? | | ??????# # # ### ##@# # # #??????????????? | | ??????# #####?##############??????????????? | | ??????# ???????????????????????????????????? | | ??????# ???????????????????????????????????? | | ??????# ????????????????????????????????????? | | ?????# ????????????????????????????????????? | | ???? ?????????????????????????????????????? | | ??? ## ?????????????????????????????????????? | | ??? ####?# ??????????????????????????????????????? | | ?????????# ??????????????????????????????????????? | | ????????? ???????????????????????????????????????? | | ????????? ???????????????????????????????????????? | | ????????#????????????????????????????????????????? | | ?????????????????????????????????????????????????? | | ?????????????????????????????????????????????????? | | ?????????????????????????????????????????????????? | | ?????????????????????????????????????????????????? | | ?????????????????????????????????????????????????? | | ?????????????????????????????????????????????????? | | ?????????????????????????????????????????????????? | | ?????????????????????????????????????????????????? | | ?????????????????????????????????????????????????? | | ?????????????????????????????????????????????????? | | ?????????????????????????????????????????????????? | | ?????????????????????????????????????????????????? | +----------------------------------------------------+ Best States ------------- Heat Dissipation 25 Energy Generation 10 Energy Capacity 250 Matter Stores 300 Matter Capacity 300 Sight Range 16 Terrain Scan Density 10 Evasion (%) 62 Targeting Accuracy 5 Recoil Reduction 2 Offensive Hacking 10 Item Schematics ----------------- None Robot Schematics ------------------ None Fabricated ------------ Nothing Repaired ---------- Nothing Studied --------- None Alien Tech Used ----------------- None Achievements -------------- For Emergencies Only Challenges ------------ None Game ------ Seed ShadeVortexDeflector Manual? 0 Play Time 00:28:52 Cumulative 2.9 hours Start 2025.11.13 @ 16:50:41 End 2025.11.13 @ 17:23:59 Sessions 1 Manual Loads 0 Difficulty Rogue Special Mode None Game No. 4 Rogue 4 Adventurer 0 Explorer 0 Win Type - Total 0 Types 0/0/0/0/0/0/0/0/0/0 Lore% 1 Gallery% 4 Achievement% 4 Wizard Run 0 Options --------- Layout 1 ASCII 0 Keyboard 0 Movement Mouse Keybinds 0 Fullscreen 1 Font 32/SmallcapsGlow Map View 25x17 Zoom Use 89% Tactical HUD 0 Map Filters NONE Filters NONE Steam 1 RUN: 2bd6ff48-657a-4ec3-bf2e-5fba0bbcd96b